Cogmind - Beta 11.1 @@@ ROGUE MODE // 2022.07.23 @ 09:29:13 Player: tkc Result: Destroyed by X-67 Chaingunner with Heavy Machine Gun Performance ------------- Evolutions (4) 2000 Regions Visited (8) 1600 Robots Destroyed (183) 915 Value Destroyed (4947) 4947 Prototype IDs (30) 600 Alien Tech Used (0) 0 Bonus (502) 502 TOTAL SCORE: 10564 Bonus ------- High Alert Combat Kills 22 Follower Combat Kills 202 Aligned with FarCom 300 Friendly Fire -22 Cogmind --------- Core Integrity 0/850 Matter 270/300 Energy 13/100 System Corruption 22% Temperature Cool (0) Movement Walking (190) Ox1 Location -6/Factory Parts ------- > --- POWER (1) -------- (None) > --- PROPULSION (4) --- Flexi-carbon Leg Flexi-carbon Leg > --- UTILITY (8) ------ High-capacity Storage Unit Machine Analyzer Transmission Jammer Improved Core Shielding Hacking Suite System Shield > --- WEAPON (2) ------- Shock Maul > --- INVENTORY (20) --- Fission Core Armored Leg Armored Leg Lightpack 2.0 Superbattery (1500) Improved Power Shielding Focal Shield Hacking Suite Improved Hacking Suite Improved Hacking Suite Heavy Flak Cannon Grenade Launcher Rocket Launcher Long-range Missile Launcher Field Lobotomy Kit (1) Power Sword Peak State ------------ > --- POWER ------------ Fusion Compressor > --- PROPULSION ------- Improved Carbon-fiber Leg Improved Titanium Leg Flexi-carbon Leg Flexi-carbon Leg > --- UTILITY ---------- High-capacity Storage Unit Advanced Sensor Array Advanced Terrain Scanner Advanced Melee Analysis Suite Improved Weapon Shielding Layered Medium Armor Plating Hacking Suite Hacking Suite > --- WEAPON ----------- Makeshift Sword Spear > --- INVENTORY -------- Micro Nuclear Core Neutrino Core Armored Treads Gravmag System Gravmag System Improved Airjet Improved Cooling System Lightpack 2.0 Superbattery Improved Light Armor Plating Layered Medium Armor Plating Proton Cannon Coil Gun Grenade Launcher Rocket Launcher Rocket Launcher Mini Grenade Launcher Field Lobotomy Kit [Rating: 71] Favorites ----------- Power Improved Ion Engine Engine Improved Ion Engine Power Core Fission Core Propulsion Wheel Treads Light Treads Leg VSS Leg Wheel Wheel Hover Unit Gravmag System Utility Hacking Suite Device Improved Sensor Array Storage High-capacity Storage Unit Processor Advanced Melee Analysis Suite Hackware Hacking Suite Protection Core Shielding Weapon High-powered Shotgun Energy Gun Medium Laser Energy Cannon Proton Cannon Ballistic Gun High-powered Shotgun Ballistic Cannon Flak Cannon Launcher Mini Grenade Launcher Special Weapon Field Lobotomy Kit Impact Weapon Heavy Flail Slashing Weapon Makeshift Sword Piercing Weapon Spear Build | -11 -10 -10 -10 -9 -8 -7 -7 -6 ------- Run | Scr Mat Min Exi Min Mat Fac Low Fac Slots Evolved 8 | . . . . . 4 2 . 2 Power . | . . . . . . . . . Propulsion 2 | . . . . . . . . 2 Utility 6 | . . . . . 4 2 . . Weapon . | . . . . . . . . . Parts Attached 246 | 9 24 2 2 5 60 38 10 96 Power 27 | 2 1 . . . 6 5 2 11 Engine 10 | 2 1 . . . 3 2 . 2 Core 17 | . . . . . 3 3 2 9 Reactor . | . . . . . . . . . Propulsion 71 | 2 9 . . 2 15 10 3 30 Treads 20 | . 4 . . . 7 4 1 4 Leg 20 | . . . . . . . 2 18 Wheel 30 | 2 5 . . 2 8 6 . 7 Hover 1 | . . . . . . . . 1 Flight . | . . . . . . . . . Utility 67 | 2 5 . . . 16 10 2 32 Device 16 | . . . . . 1 1 . 14 Storage 9 | 2 2 . . . 2 1 1 1 Processor 6 | . . . . . 1 1 . 4 Hackware 7 | . . . . . 1 4 . 2 Protection 29 | . 3 . . . 11 3 1 11 Artifact . | . . . . . . . . . Weapon 81 | 3 9 2 2 3 23 13 3 23 Energy Gun 12 | 2 2 . 2 . 4 1 . 1 Energy Cannon 1 | . . . . . . . . 1 Ballistic Gun 18 | 1 3 2 . . 5 2 3 2 Ballistic Cannon 19 | . . . . . 10 6 . 3 Launcher 13 | . 1 . . 1 3 1 . 7 Special Weapon 5 | . 3 . . 2 . . . . Impact Weapon 7 | . . . . . 1 3 . 3 Slashing Weapon 5 | . . . . . . . . 5 Piercing Weapon 1 | . . . . . . . . 1 Special Melee Weapon . | . . . . . . . . . Unidentified Prototypes 7 | . . . . . 4 2 . 1 Corrupted Parts 1 | . . . . . . . . 1 System Corruption 3 | . . . . . . . . 3 Parts Lost 72 | . . . . 1 12 15 10 34 Power 13 | . . . . . 4 4 1 4 Propulsion 24 | . . . . 1 4 3 3 13 Utility 25 | . . . . . 3 6 3 13 Weapon 10 | . . . . . 1 2 3 4 Highest Loss Streak 7 | . . . . 1 6 4 5 7 To Critical Strikes . | . . . . . . . . . Average Slot Usage (%) 91 | . 99 100 78 99 96 93 80 88 Engine 5 | . 14 14 14 14 5 3 . . Core 3 | . . . . . 3 2 6 5 Treads 3 | . 7 . . . 5 3 4 1 Leg 3 | . . . . . . . 3 11 Wheel 12 | . 19 28 28 27 11 11 6 5 Device 3 | . . . . . . 3 . 10 Storage 10 | . 14 14 14 14 9 11 13 6 Processor 5 | . . . . . 8 2 . 10 Hackware 10 | . . . . . 5 23 21 13 Protection 14 | . 12 14 14 14 28 13 6 7 Energy Gun 1 | . 9 . 7 2 . . . . Ballistic Gun 6 | . 14 28 . . 6 . 13 1 Ballistic Cannon 3 | . . . . . 10 7 1 1 Launcher 1 | . . . . 13 . . . 2 Special Weapon 1 | . 4 . . 12 . . . . Impact Weapon 1 | . . . . . . 5 . 1 Slashing Weapon 1 | . . . . . . . . 3 Naked Turns . | . . . . . . . . . Heaviest Build 113 | 17 51 50 52 59 109 111 113 75 Greatest Support 78 | 26 26 26 26 28 40 40 26 78 Greatest Overweight (x) 19 | . 3 1 1 2 19 10 7 18 Average Overweight (x) 2 | . . 1 1 1 5 4 5 1 Largest Inventory Capacity 25 | 8 20 20 20 20 25 25 25 20 Average Capacity 21 | 7 16 20 20 20 24 25 23 20 Most Carried 25 | 8 19 20 20 20 25 25 25 20 Average Carried 20 | 5 14 19 19 19 22 23 22 19 Final Capacity 25 | 8 20 20 20 20 25 25 20 20 Final Carried 25 | 8 19 20 20 20 25 25 20 18 Class Distribution -------------------- 51% | Hacker-Mutant 46% | Mutant Dominant Class ---------------- Mutant | -10/Materials Mutant | -10/Mines Mutant | -10/Exiles Mutant | -9/Mines Mutant | -8/Materials Hacker-Mutant | -7/Factory Hacker-Mutant | -7/Lower Caves Hacker-Mutant | -6/Factory Resources | -11 -10 -10 -10 -9 -8 -7 -7 -6 ----------- Run | Scr Mat Min Exi Min Mat Fac Low Fac Matter Collected 5187 | 351 304 187 . 165 1223 724 592 1641 Remotely . | . . . . . . . . . Salvage Created 5757 | 177 474 105 . 86 1406 729 306 2474 Parts 325 | 17 32 1 . 4 90 35 14 132 Haulers Intercepted 7 | . 1 . . . 4 . . 2 Recyclers Shooed 11 | . . . . . 3 2 . 6 Parts Field Recycled . | . . . . . . . . . Retrieved Matter . | . . . . . . . . . Parts Self-Destructed 18 | . . . . . . . 18 . Prevented 1 | . . . . . . . 1 . Kills | -11 -10 -10 -10 -9 -8 -7 -7 -6 ------- Run | Scr Mat Min Exi Min Mat Fac Low Fac Combat Hostiles Destroyed 117 | . 13 2 . 16 32 16 9 29 Melee 14 | . . . . . . 1 . 13 Guns 30 | . 11 2 . . 3 2 8 4 Cannons 36 | . . . . . 21 10 1 4 AOE 33 | . 2 . . 16 8 1 . 6 Classes Destroyed 15 | 3 5 . . 1 3 1 . 2 Worker 25 | 2 . . . . 5 8 . 10 Builder 15 | . 2 . . . 5 3 . 5 Tunneler 8 | 4 . . . . 1 2 . 1 Hauler 7 | . 1 . . . 4 . . 2 Recycler 13 | 1 . 1 . . 4 2 . 5 Mechanic 1 | . . . . . 1 . . . Operator 5 | . 1 . . . 3 1 . . Watcher 5 | . . . . . 3 1 . 1 Swarmer 29 | . 6 2 . 3 8 5 2 3 Grunt 50 | . 7 . . . 19 7 6 11 Duelist 1 | . . . . . . . . 1 Sentry 10 | . . . . . 5 1 1 3 Hunter 4 | . . . . . . . . 4 Programmer 10 | . . . . . . 3 . 7 Assembled 13 | . . . . 13 . . . . Best Kill Streak 13 | 7 4 1 . 13 6 8 5 6 Combat Bots Only 13 | . 3 1 . 13 6 5 5 4 Max Kills in Single Turn 5 | 1 2 1 . 5 5 2 2 3 Gunslinging . | . . . . . . . . . Exploded 5 | . 2 . . 5 4 1 . 2 Melee 1 | . . . . . . 1 . 1 Uniques/NPCs Destroyed . | . . . . . . . . . Combat | -11 -10 -10 -10 -9 -8 -7 -7 -6 -------- Run | Scr Mat Min Exi Min Mat Fac Low Fac Damage Taken 11958 | . 401 31 . 239 2245 2469 1024 5549 Core 1787 | . 61 9 . 50 228 406 175 858 Absorbed by Shields . | . . . . . . . . . Redirected to Shielding 654 | . 12 2 . 10 223 225 . 182 Regen/Repaired (Parts) 334 | . 295 . . . 39 . . . Core Remaining (%) 56 | 100 . . . 52 58 . 17 . Volleys Fired 335 | 10 53 7 . 14 107 49 20 75 Largest 2 | 2 2 2 . 1 2 2 2 2 Hottest 100 | 70 100 40 . 30 88 92 92 83 Shots Fired 558 | 20 94 14 . 14 203 82 41 90 Gun 265 | 20 82 14 . . 65 15 30 39 Cannon 236 | . . . . . 129 63 11 33 Launcher 43 | . 2 . . 10 9 4 . 18 Special 14 | . 10 . . 4 . . . . Kinetic 433 | 10 41 14 . . 182 78 41 67 Thermal 49 | 10 39 . . . . . . . Explosive 43 | . 2 . . 10 9 4 . 18 Electromagnetic 29 | . 12 . . . 12 . . 5 Robot Hit Streak 11 | 6 8 3 . 7 11 8 6 11 Robot Miss Streak 11 | 4 2 2 . 1 9 11 4 5 Penetration Max 1 | . . . . . . . . 1 Secondary Targets 2 | . . 1 . . . . 1 . Max Gunslinging Chain 1 | . . 1 . . . . 1 . Shots Hit Robots 490 | 11 60 5 . 10 155 83 29 137 Core Hits 375 | 8 29 4 . 21 158 53 22 80 Critical Kills 1 | . . . . . . . . 1 Critical Parts Destroyed 13 | . . . . . 1 4 1 7 Critical Strikes 25 | . 2 . . . 1 5 3 14 Burn 2 | . 2 . . . . . . . Destroy 2 | . . . . . . . 1 1 Blast 3 | . . . . . . 1 2 . Smash 12 | . . . . . 1 4 . 7 Sever 5 | . . . . . . . . 5 Impale 1 | . . . . . . . . 1 Melee Attacks 247 | . . . . . 6 50 . 191 Impact 90 | . . . . . 6 50 . 34 Slashing 133 | . . . . . . . . 133 Piercing 24 | . . . . . . . . 24 Sneak Attacks 22 | . . . . . 1 7 . 14 Combat Hostiles . | . . . . . . . . . Follow-up Attacks 5 | . . . . . . . . 5 Damage Inflicted 15198 | 146 824 64 . 970 3297 3014 705 6178 Guns 3141 | 146 629 64 . . 763 232 471 836 Cannons 3378 | . . . . . 1794 937 234 413 Explosions 3310 | . 123 . . 970 635 662 . 920 Melee 5286 | . . . . . 105 1183 . 3998 Ramming 11 | . . . . . . . . 11 Kinetic 5841 | 71 231 64 . . 2451 1169 705 1150 Thermal 924 | 75 332 . . . . 411 . 106 Explosive 2767 | . 123 . . 970 635 225 . 814 Electromagnetic 369 | . 138 . . . 106 26 . 99 Impact 2137 | . . . . . 105 1183 . 849 Slashing 2694 | . . . . . . . . 2694 Piercing 455 | . . . . . . . . 455 Highest Corruption 22 | . . . . . . 7 7 22 Average Corruption 7 | . . . . . . 5 7 8 Corruption Purged . | . . . . . . . . . Corruption Blocked . | . . . . . . . . . Effects 241 | . . . . . . 37 79 125 Message Errors 68 | . . . . . . 6 25 37 Matter Fused 54 | . . . . . . 5 20 29 Heat Flow Errors 33 | . . . . . . 6 9 18 Energy Discharges 30 | . . . . . . 7 6 17 Parts Rejected 1 | . . . . . . . . 1 Data Loss (minor) 28 | . . . . . . 4 12 12 Data Loss (major) 12 | . . . . . . 5 3 4 Misfires 10 | . . . . . . 3 2 5 Alerts 3 | . . . . . . 1 1 1 Weapon Failures 2 | . . . . . . . 1 1 Overload Shots . | . . . . . . . . . Overflow Damage 1504 | . . . . 28 83 626 . 767 Projectiles 38 | . . . . . 6 6 . 26 Explosions 203 | . . . . 28 12 57 . 106 Melee 1263 | . . . . . 65 563 . 635 Knockbacks 85 | . . . . . 45 27 8 5 Impact 7 | . . . . . 1 3 . 3 Kinetic 73 | . . . . . 39 24 8 2 Secondary 5 | . . . . . 5 . . . Self-Inflicted Damage 594 | . . . . 113 70 100 . 311 Shots 17 | . . . . 5 2 3 . 7 Rammed 1 | . . . . . . . . 1 Targets Rammed 1 | . . . . . . . . 1 Kicked . | . . . . . . . . . Crushed . | . . . . . . . . . Highest Temperature 297 | 27 152 4 . . 297 267 274 272 Average Temperature 76 | 9 44 1 . . 75 83 109 102 Received Heat Transfer 3351 | . 153 12 . . 1053 555 507 1071 Effects 1 | . . . . . . . . 1 Interference 1 | . . . . . . . . 1 Siege Activations . | . . . . . . . . . Robots Corrupted . | . . . . . . . . . Combat Hostiles . | . . . . . . . . . Parts Fried 14 | . . . . . 3 6 . 5 Impact Corruptions 29 | . . . . . 4 15 . 10 Robots Melted . | . . . . . . . . . Combat Hostiles . | . . . . . . . . . Parts Melted 2 | . 1 . . . . 1 . . Heat Transferred 1610 | 222 1038 . . . . 300 . 50 Parts Sabotaged . | . . . . . . . . . Parts Stolen . | . . . . . . . . . Parts Stripped . | . . . . . . . . . Power Chain Reactions 1 | . . . . . . 1 . . Missiles Intercepted . | . . . . . . . . . Alert | -11 -10 -10 -10 -9 -8 -7 -7 -6 ------- Run | Scr Mat Min Exi Min Mat Fac Low Fac Peak Influence 601 | 35 243 147 . 374 398 601 . 421 Initial 159 | . 22 3 . . 9 159 . . Average 148 | 14 74 30 . 177 158 208 . 162 Maximum Alert Level 2 | . 1 . . 1 1 2 . 2 Low Security (%) 71 | 100 89 100 . 71 65 66 . 66 Level 1 22 | . 10 . . 28 34 14 . 24 Level 2 5 | . . . . . . 18 . 8 Level 3 . | . . . . . . . . . Level 4 . | . . . . . . . . . Level 5 . | . . . . . . . . . High Security . | . . . . . . . . . Max Security . | . . . . . . . . . Squads Dispatched 28 | . 2 . . . 6 8 . 12 Investigation 7 | . 1 . . . 1 3 . 2 Extermination 9 | . . . . . . 4 . 5 Reinforcement 9 | . 1 . . . 3 1 . 4 Assault 1 | . . . . . . . . 1 Garrison 2 | . . . . . 2 . . . Intercept . | . . . . . . . . . Searches Triggered . | . . . . . . . . . Construction Impeded 1 | . . . . . . . . 1 Haulers Reinforced 2 | . . . . . . . . 2 Active Scanning Responses . | . . . . . . . . . Cargo Convoy Interrupts . | . . . . . . . . . Stealth | -11 -10 -10 -10 -9 -8 -7 -7 -6 --------- Run | Scr Mat Min Exi Min Mat Fac Low Fac Distress Signals 9 | . . . . . 6 . . 3 Communications Jammed 15 | . . . . . . . . 15 Distress Signals 15 | . . . . . . . . 15 Times Spotted 207 | . 29 8 . 24 51 30 12 53 Peak Tracking Total 16 | . 4 3 . 16 7 7 4 4 Tactical Retreats 9 | . 1 . . 1 1 5 . 1 Traps | -11 -10 -10 -10 -9 -8 -7 -7 -6 ------- Run | Scr Mat Min Exi Min Mat Fac Low Fac Traps Triggered 24 | . 1 . . . 8 4 . 11 Indirectly . | . . . . . . . . . Trap Hack Attempts . | . . . . . . . . . Triggered . | . . . . . . . . . Disarmed . | . . . . . . . . . Reprogrammed . | . . . . . . . . . Reused . | . . . . . . . . . Traps Extracted . | . . . . . . . . . Installed . | . . . . . . . . . Triggered 3 | . . . . . . 3 . . Exploded 1 | . . . . . . 1 . . Machines | -11 -10 -10 -10 -9 -8 -7 -7 -6 ---------- Run | Scr Mat Min Exi Min Mat Fac Low Fac Machines Disabled 23 | . 1 . . 1 2 14 . 5 Max in Single Turn 8 | . 1 . . . 1 8 . 3 Garrison Access 2 | . . . . . . 1 . 1 Machines Sabotaged . | . . . . . . . . . Garrisons Compromised . | . . . . . . . . . Overloaded Fab Kills . | . . . . . . . . . Hacking | -11 -10 -10 -10 -9 -8 -7 -7 -6 --------- Run | Scr Mat Min Exi Min Mat Fac Low Fac Machines Accessed 54 | . 9 . 1 1 12 8 1 22 Terminals 33 | . 6 . . 1 7 5 . 14 Fabricators 5 | . . . . . . 1 . 4 Repair Stations 2 | . 1 . . . 1 . . . Recycling Units 7 | . 2 . . . 2 . . 3 Scanalyzers 2 | . . . . . 1 1 . . Garrison Access 3 | . . . . . 1 1 . 1 Total Hacks 136 | . 35 . 1 1 30 16 1 52 Successful 91 | . 25 . 1 . 20 13 1 31 Failed 45 | . 10 . . 1 10 3 . 21 Catastrophic 7 | . 3 . . 1 1 . . 2 Database Lockouts . | . . . . . . . . . Manual 67 | . 19 . 1 1 16 6 . 24 Terminals 86 | . 20 . . 1 20 9 . 36 Fabricators 14 | . . . . . . 3 . 11 Repair Stations 13 | . 11 . . . 2 . . . Recycling Units 11 | . 4 . . . 3 . . 4 Scanalyzers 6 | . . . . . 3 3 . . Garrison Access 4 | . . . . . 2 1 . 1 Terminal Hacks 35 | . 6 . 1 . 8 4 1 15 Record 3 | . . . . . . . . 3 Part Schematic 1 | . . . . . . . . 1 Robot Analysis 2 | . 2 . . . . . . . Open Door 1 | . . . . . . . 1 . Open DSF 6 | . . . . . . 2 . 4 Branch Access Points 1 | . . . . . . . . 1 Emergency Access Points 1 | . . . . . . . . 1 Terminal Index 3 | . 1 . . . 1 1 . . Alert Level 6 | . 1 . . . 2 1 . 2 Unreport Threat 3 | . 1 . . . 1 . . 1 Recall Investigation 1 | . . . . . 1 . . . Recall Reinforcements 1 | . . . . . 1 . . . Registered Prototypes 1 | . . . . . 1 . . . Zone Layout 4 | . 1 . . . 1 . . 2 EX-Prototype ID Bank 1 | . . . 1 . . . . . Fabricator Hacks 7 | . . . . . . 2 . 5 Load Schematic 4 | . . . . . . 1 . 3 Build 3 | . . . . . . 1 . 2 Repair Station Hacks 12 | . 10 . . . 2 . . . Scan Component 6 | . 5 . . . 1 . . . Repair 6 | . 5 . . . 1 . . . Recycling Unit Hacks 9 | . 3 . . . 2 . . 4 Report Inventory 7 | . 2 . . . 2 . . 3 Retrieve Matter 1 | . . . . . . . . 1 Retrieve Components 1 | . 1 . . . . . . . Scanalyzer 5 | . . . . . 3 2 . . Insert Component 3 | . . . . . 2 1 . . Analyze 2 | . . . . . 1 1 . . Garrison Access Hacks 2 | . . . . . . 1 . 1 Seal Access 2 | . . . . . . 1 . 1 Unauthorized Hacks 21 | . 6 . . . 5 4 . 6 Terminals 19 | . 6 . . . 5 3 . 5 Assimilate 1 | . . . . . . . . 1 Botnet 15 | . 5 . . . 4 3 . 3 Operators 3 | . 1 . . . 1 . . 1 Fabricators 2 | . . . . . . 1 . 1 Prioritize 1 | . . . . . . 1 . . Fabnet 1 | . . . . . . . . 1 Repair Stations . | . . . . . . . . . Recycling Units . | . . . . . . . . . Scanalyzers . | . . . . . . . . . Garrison Access . | . . . . . . . . . Data Cores Recovered . | . . . . . . . . . Used . | . . . . . . . . . Hacking Detections 40 | . 7 . . 1 9 6 . 17 Full Trace Events 4 | . . . . . . 2 . 2 Feedback Events . | . . . . . . . . . Feedback Blocked . | . . . . . . . . . Robot Schematics Acquired . | . . . . . . . . . Robots Built . | . . . . . . . . . Authchips . | . . . . . . . . . Time . | . . . . . . . . . Total Robot Build Rating . | . . . . . . . . . Part Schematics Acquired 3 | . . . . . 1 1 . 1 Parts Built 5 | . . . . . . 1 . 4 Authchips . | . . . . . . . . . Time 162 | . . . . . . 36 . 126 Total Part Build Rating 19 | . . . . . . 3 . 16 Parts Repaired 6 | . 5 . . . 1 . . . Time 156 | . 130 . . . 26 . . . Parts Recycled . | . . . . . . . . . Recycled Matter . | . . . . . . . . . Retrieved Matter 194 | . . . . . . . . 194 Retrieved Components 2 | . 2 . . . . . . . Parts Scanalyzed 2 | . . . . . 1 1 . . Part Schematics Acquired 2 | . . . . . 1 1 . . Parts Damaged . | . . . . . . . . . Bothacking | -11 -10 -10 -10 -9 -8 -7 -7 -6 ------------ Run | Scr Mat Min Exi Min Mat Fac Low Fac Used RIF Installer . | . . . . . . . . . Robots Hacked . | . . . . . . . . . Non-combat . | . . . . . . . . . Combat . | . . . . . . . . . Robot Hacks Applied . | . . . . . . . . . Relay Couplers Released . | . . . . . . . . . Fabnet Peak Effective % . | . . . . . . . . . Robots Rewired . | . . . . . . . . . Allies Hacked . | . . . . . . . . . Hacks Repelled . | . . . . . . . . . Allies | -11 -10 -10 -10 -9 -8 -7 -7 -6 -------- Run | Scr Mat Min Exi Min Mat Fac Low Fac Total Allies 9 | . . 3 . 4 . . 1 1 Largest Group 3 | . . 3 2 3 2 . 1 1 Highest-Rated Group 140 | . . 40 29 76 68 . 140 10 Highest-Rated Ally 140 | . . 16 16 34 34 . 140 10 Total Orders 4 | . . . . 3 . . . 1 FOLLOW 1 | . . . . 1 . . . . AID 2 | . . . . 2 . . . . EXPLORE 1 | . . . . . . . . 1 Ally Attacks 49 | . . 30 . 10 9 . . . Total Damage 1252 | . . 311 . 336 605 . . . Kills 22 | . . 8 . 6 8 . . . Allies Corrupted 1 | . . . . . . . . 1 Allies Melted . | . . . . . . . . . Field Lobotomies 4 | . . . . 4 . . . . Intel | -11 -10 -10 -10 -9 -8 -7 -7 -6 ------- Run | Scr Mat Min Exi Min Mat Fac Low Fac Robot Analysis Total 2 | . 2 . . . . . . . Derelict Logs Recovered 5 | . . 2 . 2 . . 1 . Drone Launches 2 | . . . . . . . . 2 Drone Recoveries 1 | . . . . . . . . 1 Exploration | -11 -10 -10 -10 -9 -8 -7 -7 -6 ------------- Run | Scr Mat Min Exi Min Mat Fac Low Fac Turns Passed 16643 | 133 1547 938 509 1016 3574 1958 2460 4508 Spaces Moved 8730 | 87 729 773 476 687 1303 936 1134 2605 Core 3 | 1 . . . . 1 . . 1 Treads 321 | . 129 . . . 118 73 . 1 Legs 999 | . . . . . . . 227 772 Wheels 7407 | 86 600 773 476 687 1184 863 907 1831 Hover . | . . . . . . . . . Flight . | . . . . . . . . . Fastest Speed 50 | 50 90 105 105 105 110 135 150 100 Average Speed 148 | 89 129 105 105 122 185 165 209 130 Slowest Speed 1000 | 100 320 105 105 125 1000 330 450 950 Overloaded Moves . | . . . . . . . . . Propulsion Burnouts . | . . . . . . . . . Robots Hopped . | . . . . . . . . . Cave-ins Triggered 1 | . . . . . . . . 1 Exploration Rate (%) 70 | 4 98 98 79 98 90 24 88 54 Regions Visited 8 Branch Regions 4 Pre-discovered Areas 1 | . . . . 1 . . . . Known Exits Taken . | . . . . . . . . . Unknown Exits Taken 8 | 1 1 1 1 1 1 1 1 . Scrap Searched 5 | . . 1 . 2 . . 2 . Spaces Dug 99 | . 3 . . . 3 12 . 81 Terrain Destroyed 441 | . 16 . . 61 53 109 . 202 Melee 85 | . . . . . 3 12 . 70 Projectile 25 | . 4 . . . 3 4 . 14 AOE 331 | . 12 . . 61 47 93 . 118 Terrain Rammed . | . . . . . . . . . Walls Destroyed . | . . . . . . . . . Machines Disabled . | . . . . . . . . . Actions | -11 -10 -10 -10 -9 -8 -7 -7 -6 --------- Run | Scr Mat Min Exi Min Mat Fac Low Fac Total 11572 | 119 1222 890 487 842 2243 1188 1178 3403 Wait 1718 | . 393 101 . 131 700 90 2 301 Move 8721 | 86 728 772 475 686 1302 935 1133 2604 Hop . | . . . . . . . . . Pick Up 144 | 11 15 2 5 3 41 14 7 46 Fast Attach 88 | 7 5 . . 1 18 12 . 45 Attach 68 | 1 . . 2 2 18 10 9 26 Detach 16 | . . 2 . . . 2 . 12 Swap 90 | 1 19 2 . 2 24 16 1 25 Drop 118 | 3 9 4 5 3 27 10 6 51 Fire 335 | 10 53 7 . 14 107 49 20 75 Melee 240 | . . . . . 6 50 . 184 Ram 1 | . . . . . . . . 1 Kick . | . . . . . . . . . Crush . | . . . . . . . . . Escape Stasis 33 | . . . . . . . . 33 Rewire . | . . . . . . . . . Trap . | . . . . . . . . . Miscellaneous . | . . . . . . . . . Route ------- -11/Scrapyard -10/Materials (discovered 4 exits: [*Mat x3] / [*Min]) -10/Mines (discovered 3 exits: [*Mat x2] / *Exi) -10/Exiles (discovered 2 exits: *Min x2) -9/Mines (discovered 2 exits: *Mat x2) -8/Materials (discovered 3 exits: *Fac x3) -7/Factory -7/Lower Caves (discovered 2 exits: [*Low] / *Fac) -6/Factory (discovered 2 exits: *Low x2) History --------- Turn | Location | Event 7 | -11/Scrapyard | Discovered new exit (range 16) 134 | -11/Scrapyard | Entered Materials 177 | -10/Materials | Discovered new exit (range 5) 304 | -10/Materials | Build established: Mutant 404 | -10/Materials | Discovered new exit (range 5) 629 | -10/Materials | Discovered new exit (range 9) 1293 | -10/Materials | Discovered new exit (range 16) 1421 | -10/Materials | Repaired Core Shielding 1448 | -10/Materials | Repaired Com. Wheel 1476 | -10/Materials | Repaired EM Pulse Gun 1503 | -10/Materials | Repaired Lgt. Assault Rifle 1530 | -10/Materials | Repaired Lgt. Treads 1681 | -10/Materials | Entered Mines 1696 | -10/Mines | Learned 4 Materials zone layouts 1702 | -10/Mines | Learned 2 Materials zone layouts 1707 | -10/Mines | Met a Derelict bent on vengeance 1719 | -10/Mines | Assisted by bots powering up and referring to "LRC-V3" 1836 | -10/Mines | Discovered new exit (range 11) 2141 | -10/Mines | Discovered new exit (range 7) 2594 | -10/Mines | Deemed a non-threat by the Exiles lab entrance 2595 | -10/Mines | Discovered new exit (range 5) 2619 | -10/Mines | Entered Exiles 2619 | -10/Exiles | Accompanied by 2 allies 2652 | -10/Exiles | Discovered new exit (range 14) 2663 | -10/Exiles | Met 8R-AWN 2680 | -10/Exiles | Met EX-HEX 2715 | -10/Exiles | Met EX-BIN 2734 | -10/Exiles | Aligned with FarCom system 2735 | -10/Exiles | Given EX-Vault access code 2759 | -10/Exiles | Opened EX-Vault 2771 | -10/Exiles | Found Field Lobotomy Kit 2810 | -10/Exiles | Warned to stay clear of 0b10 Research branches 2841 | -10/Exiles | Met EX-DEC 2877 | -10/Exiles | Visited The Gauntlet 3001 | -10/Exiles | Found Lightpack 2.0 3005 | -10/Exiles | Found Superbattery 3115 | -10/Exiles | Discovered new exit (range 14) 3128 | -10/Exiles | Stole three prototypes: Lightpack 2.0, Superbattery, Field Lobotomy Kit 3128 | -10/Exiles | Entered Mines 3128 | -9/Mines | Accompanied by 1 ally 3209 | -9/Mines | Assembled infested the area 3214 | -9/Mines | Assisted by a Guerilla fighting off Assembled 3248 | -9/Mines | Assimilated D-53 Grenadier with FLK Orb 3251 | -9/Mines | Assimilated D-53 Grenadier with FLK Orb 3254 | -9/Mines | Assimilated as-47378 with FLK Orb 3257 | -9/Mines | Assimilated as-46306 with FLK Orb 3265 | -9/Mines | Destroyed 13 combat bots 3294 | -9/Mines | Learned location of Storage (-9) 3638 | -9/Mines | Discovered new exit (range 7) 3649 | -9/Mines | Received a Rocket Launcher from a helpful Derelict 3691 | -9/Mines | Discovered new exit (range 16) 4144 | -9/Mines | Entered Materials 4144 | -8/Materials | Accompanied by 2 allies 4144 | -8/Materials | Evolved 4 slots: Utility x4 4225 | -8/Materials | Garrison activated, responded to threat 4343 | -8/Materials | Lost 6 parts (2p2n1u1w) 5282 | -8/Materials | Discovered new exit (range 7) 5412 | -8/Materials | Repaired Core Shielding 5527 | -8/Materials | Garrison activated, responded to threat 5794 | -8/Materials | Discovered new exit (range 11) 6935 | -8/Materials | Discovered new exit (range 18) 7718 | -8/Materials | Entered Factory 7718 | -7/Factory | Evolved 2 slots: Utility x2 7720 | -7/Factory | FarCom data flow suspended 8038 | -7/Factory | Build established: Hacker-Mutant 8056 | -7/Factory | Lost 3 parts (1n1u1w) 8175 | -7/Factory | Lost 4 parts (2n2u) 8565 | -7/Factory | Fabricated Hacking Suite (x1) 8864 | -7/Factory | Discovered new exit (range 5) 9301 | -7/Factory | Core integrity fell below 50% 9323 | -7/Factory | Lost 3 parts (1p2u) 9676 | -7/Factory | Entered Lower Caves 9982 | -7/Lower Caves | Lost 5 parts (1n2u2w) 10648 | -7/Lower Caves | Encountered a Warlord checkpoint 11038 | -7/Lower Caves | Spotted B-75 Beast 11168 | -7/Lower Caves | Learned Factory terminal intel 11384 | -7/Lower Caves | Discovered new exit (range 4) 11485 | -7/Lower Caves | Attracted the attention of an 0b10 checkpoint 11499 | -7/Lower Caves | Core integrity fell below 20% 11533 | -7/Lower Caves | Lost 5 parts (1p2n1u1w) 11607 | -7/Lower Caves | 1C-UTU showed up to help 11611 | -7/Lower Caves | 1C-UTU revealed a hidden path 12136 | -7/Lower Caves | Entered Factory 12136 | -6/Factory | Evolved 2 slots: Propulsion x2 12137 | -6/Factory | Loaded intel: 26 terminal locations 12668 | -6/Factory | Discovered new exit (range 15) 13609 | -6/Factory | Spotted B-75 Beast 13640 | -6/Factory | Lost 6 parts (3n2u1w) 13756 | -6/Factory | Core integrity fell below 50% 13771 | -6/Factory | Lost 7 parts (1p3n2u1w) 13889 | -6/Factory | Lost 4 parts (1p2n1w) 14126 | -6/Factory | Fabricated Arm. Huge Wheel? 14491 | -6/Factory | Identified exit to Lower Caves 14626 | -6/Factory | Fabricated Arm. Huge Wheel (x2) 15169 | -6/Factory | Core integrity fell below 20% 15201 | -6/Factory | System corruption reached 10% 15986 | -6/Factory | First assault squad dispatched 16596 | -6/Factory | Crushed by falling debris 16627 | -6/Factory | Lost 3 parts (1n2u) 16644 | -6/Factory | Destroyed by X-67 Chaingunner with Heavy Machine Gun Last Messages --------------- 16596_ System corrupted by crushing effect (+4). 16596_ Adv. Melee Analysis Suite destroyed. 16596_ System corrupted by crushing effect (+3). 16603_ U-05 Engineer builds a Wall. 16606_ ALERT: Suspicious intruders detected, dispatching Specialist reinforcements to area. 16614_ U-05 Engineer builds a Wall. 16617_ TULQ4TM=S<6GSY/AIQXA3 EO%66S 16621_ Acquired Unknown Processor. 16621_ Identified Machine Analyzer. 16623_ Connecting with Terminal... 16625_ W-25 Informer distress signal jammed. 16629_ Fission Core destroyed. 16629_ Arm. Huge Wheel destroyed. 16629_ W-25 Informer distress signal jammed. 16632_ System corrupted: Component data lost. 16632_ W-25 Informer distress signal jammed. [Achievement: Total Silence] 16633_ W-25 Informer distress signal jammed. 16639_ Imp. Sensor Array destroyed. Map ----- +----------------------------------------------------+ | ?????????????????????????????????????????? | | ?????????????????????????????????????????? | | ?????????????????????????????????????????? | | ????????????o????????????????????????????? | | ?????????????????????????????????????????? | | ?????????????????????????????????????????? | | ???????????""????????????????????????????? | | ???????????"T????"""""???????????????????? | | ???????????""????"""""???????????????"""?? | | ?????????????????"""?????????????????"""?? | | ?????????????????????????????????????"""?? | | ?????????????????????????????????????????? | | ???????????????????????????????? ???????"? | | ??????????????????????????????? #?????""? | | ??????????????????????????????? #?????""? | | ?????????????????????????????? +?????""? | | ?????????????????????????????? #?????""? | | ????????????????????????????? #?????T"? | | ????????????????????????????? #?????""? | | ???????????????????????????? #?????""? | | ????????????################ #?????""? | | ??????????? x #?????""? | | ??????????? #??????"? | | ?????????? +???????? | | ?????????? #???????? | | ?????????? @ #???????? | | ???????????????#########;### #???????? | | ???????????????# w #???? #???????? | | ?????????"""???#" """ #?????????????? | | ?????????"""???#"" """ #?????????????? | | ?????????"""???#"" Y""" +?????????????? | | ???????????????#"" #?????????????? | | ?????????"""???#"" """ #?????????????? | | ?????????"""???#"T ! """ #?????????????? | | ?????????"""???#"" ![ """ #?????????????? | | ???????????????#"" ![ #?????????????? | | ?????????????###"" """ #?????????????? | | ????????????####"" """ #?????????????? | | ???????????## ##" """ #?????????????? | | ??????????## ### #?????????????? | | ?????#################### ##?????????????? | | ?????# ##????????##??????????????? | | ?????# #?????????????????????????? | | + = #?????????????????????????? | | # #?????????????????????????? | | ?# """ """ #?????????????????????????? | | ???# """ """ #?????????????????????????? | | ?????# """ """ #?????????????????????????? | | ?????# +?????????????????????????? | | ?????##############??????????????????????? | +----------------------------------------------------+ Best States ------------- Heat Dissipation 56 Energy Generation 25 Energy Capacity 315 Matter Stores 300 Matter Capacity 500 Sight Range 20 Robot Scan Range 16 Terrain Scan Range 20 Terrain Scan Density 10 Jamming Range 12 Armor Coverage 450 Resistance: KI 20 Core Shielding 30 Power Shielding 66 Propulsion Shielding 33 Utility Shielding 66 Weapon Shielding 66 Weapon Cycling 15 Evasion (%) 60 Targeting Accuracy 8 Melee Accuracy 16 Recoil Reduction 2 Offensive Hacking 40 Defensive Hacking 10 Item Schematics ----------------- Rocket Launcher | -8/Materials | Scanalyzed Hacking Suite | -7/Factory | Scanalyzed Arm. Huge Wheel | -6/Factory | Hacked Robot Schematics ------------------ None Fabricated ------------ Hacking Suite | x1 | -7/Factory Arm. Huge Wheel | x2 | -6/Factory Arm. Huge Wheel | x2 | -6/Factory Alien Tech Used ----------------- None Achievements -------------- Total Silence Challenges ------------ None Game ------ Seed AerolevBoreFrame Manual? 0 Play Time 03:58:57 Cumulative 87.5 hours Start 2022.07.21 @ 19:32:09 End 2022.07.23 @ 09:29:13 Sessions 7 Manual Loads 0 Difficulty Rogue Special Mode None Game No. 54 Rogue 53 Adventurer 0 Explorer 1 Win Type - Total 0 Types 0/0/0/0/0/0/0/0/0 Lore% 21 Gallery% 34 Achievement% 25 Wizard Run 0 Options --------- ASCII 0 Keyboard 0 Movement Mouse Keybinds 0 Fullscreen 1 Font 18/X11 Map View 76x50 Tactical HUD 1 Map Filters NONE Filters NONE Steam 1 RUN: a2af0757-76ce-415e-8296-21c23ef27f62